[Event "*** Titled Tuesday Blitz AM"]
[Site "Chess.com"]
[Date "2020.01.07"]
[Round "4"]
[White "lestri"]
[Black "Oleksandr_Bortnyk"]
[Result "1/2-1/2"]
[WhiteElo "2632"]
[BlackElo "2998"]
[TimeControl "180+2"]
[EndTime "9:54:02 PST"]
[Termination "Game drawn - insufficient material"]

1. c4 {[%clk 0:03:01.9]} 1... b6 {[%clk 0:02:52]} 2. Nc3 {[%clk 0:03:01.5]} 2...
Bb7 {[%clk 0:02:53.3]} 3. d4 {[%clk 0:03:02.5]} 3... e6 {[%clk 0:02:48.7]} 4. e4
{[%clk 0:03:03.4]} 4... Bb4 {[%clk 0:02:49.5]} 5. Qc2 {[%clk 0:03:04.8]} 5...
Nc6 {[%clk 0:02:45.2]} 6. Nf3 {[%clk 0:03:04.4]} 6... Nge7 {[%clk 0:02:21.1]} 7.
d5 {[%clk 0:03:03]} 7... Na5 {[%clk 0:02:14.8]} 8. a3 {[%clk 0:02:56.6]} 8...
Bxc3+ {[%clk 0:02:04.1]} 9. Qxc3 {[%clk 0:02:56.8]} 9... O-O {[%clk 0:02:05.2]}
10. b4 {[%clk 0:02:55.3]} 10... exd5 {[%clk 0:02:06.6]} 11. cxd5 {[%clk
0:02:52.3]} 11... Re8 {[%clk 0:02:05.9]} 12. Be2 {[%clk 0:02:45.5]} 12... Bxd5
{[%clk 0:01:52.8]} 13. exd5 {[%clk 0:02:44.7]} 13... Nxd5 {[%clk 0:01:54.7]} 14.
Qd4 {[%clk 0:01:59.9]} 14... Nb3 {[%clk 0:01:53.5]} 15. Qxd5 {[%clk 0:02:00.8]}
15... Nxa1 {[%clk 0:01:51.1]} 16. Bg5 {[%clk 0:01:53.8]} 16... Qc8 {[%clk
0:01:34.4]} 17. Qa2 {[%clk 0:01:49.5]} 17... Qa6 {[%clk 0:01:22.4]} 18. Be3
{[%clk 0:01:48.8]} 18... Qxa3 {[%clk 0:01:23.5]} 19. Qxa3 {[%clk 0:01:45.4]}
19... Nc2+ {[%clk 0:01:24.8]} 20. Kd2 {[%clk 0:01:46.6]} 20... Nxa3 {[%clk
0:01:26.3]} 21. Ra1 {[%clk 0:01:47.7]} 21... a5 {[%clk 0:01:27.6]} 22. Rxa3
{[%clk 0:01:47.8]} 22... axb4 {[%clk 0:01:29]} 23. Rxa8 {[%clk 0:01:42.2]} 23...
Rxa8 {[%clk 0:01:30.9]} 24. Bc4 {[%clk 0:01:43.1]} 24... d5 {[%clk 0:01:27.6]}
25. Bd3 {[%clk 0:01:28]} 25... c5 {[%clk 0:01:25.7]} 26. Bb5 {[%clk 0:01:28.9]}
26... Ra2+ {[%clk 0:01:21.4]} 27. Kd3 {[%clk 0:01:29.2]} 27... b3 {[%clk
0:01:19.2]} 28. Kc3 {[%clk 0:01:27.7]} 28... c4 {[%clk 0:01:12.2]} 29. Nd4
{[%clk 0:01:24.8]} 29... b2 {[%clk 0:00:52.6]} 30. Kc2 {[%clk 0:01:18.7]} 30...
c3 {[%clk 0:00:53.7]} 31. Ne2 {[%clk 0:01:19.2]} 31... b1=Q+ {[%clk 0:00:51.8]}
32. Kxb1 {[%clk 0:01:19.4]} 32... Rb2+ {[%clk 0:00:53.7]} 33. Kc1 {[%clk
0:01:20.6]} 33... Rxb5 {[%clk 0:00:55.6]} 34. Nxc3 {[%clk 0:01:21.8]} 34... Rb4
{[%clk 0:00:45.9]} 35. Nxd5 {[%clk 0:01:20.7]} 35... Rh4 {[%clk 0:00:47]} 36. h3
{[%clk 0:01:15]} 36... b5 {[%clk 0:00:44.7]} 37. Kb2 {[%clk 0:01:04.6]} 37... f6
{[%clk 0:00:44.7]} 38. Nc3 {[%clk 0:00:59]} 38... b4 {[%clk 0:00:45.5]} 39. Nd5
{[%clk 0:00:59.7]} 39... Re4 {[%clk 0:00:46.4]} 40. Kb3 {[%clk 0:01:00.1]} 40...
f5 {[%clk 0:00:45.6]} 41. Nxb4 {[%clk 0:00:57.7]} 41... f4 {[%clk 0:00:47]} 42.
Bc5 {[%clk 0:00:58.2]} 42... f3 {[%clk 0:00:44.8]} 43. g3 {[%clk 0:00:57.7]}
43... g5 {[%clk 0:00:44.5]} 44. Kc3 {[%clk 0:00:56.9]} 44... Kf7 {[%clk
0:00:42.4]} 45. Kd3 {[%clk 0:00:57.5]} 45... Re8 {[%clk 0:00:42.1]} 46. g4
{[%clk 0:00:53.3]} 46... Kg6 {[%clk 0:00:40.8]} 47. Nc2 {[%clk 0:00:47.1]} 47...
h5 {[%clk 0:00:38.4]} 48. Nd4 {[%clk 0:00:44.6]} 48... Re1 {[%clk 0:00:32.5]}
49. Nxf3 {[%clk 0:00:42.9]} 49... Rh1 {[%clk 0:00:33.7]} 50. gxh5+ {[%clk
0:00:21.6]} 50... Kxh5 {[%clk 0:00:35.6]} 51. Ke4 {[%clk 0:00:20.5]} 51... Rxh3
{[%clk 0:00:36.2]} 52. Bd6 {[%clk 0:00:19.6]} 52... Rh1 {[%clk 0:00:34.3]} 53.
Be7 {[%clk 0:00:18.6]} 53... g4 {[%clk 0:00:34.6]} 54. Ne5 {[%clk 0:00:19.3]}
54... Rf1 {[%clk 0:00:31.8]} 55. Bc5 {[%clk 0:00:19]} 55... Kh4 {[%clk
0:00:29.8]} 56. Be3 {[%clk 0:00:18.6]} 56... Kh3 {[%clk 0:00:29.2]} 57. Ng6
{[%clk 0:00:18.3]} 57... Ra1 {[%clk 0:00:22.4]} 58. Nf4+ {[%clk 0:00:19.5]}
58... Kh4 {[%clk 0:00:23.3]} 59. Ne2 {[%clk 0:00:20.2]} 59... Ra4+ {[%clk
0:00:23.1]} 60. Bd4 {[%clk 0:00:20.8]} 60... Kh3 {[%clk 0:00:22.3]} 61. Nf4+
{[%clk 0:00:21.2]} 61... Kh2 {[%clk 0:00:23.1]} 62. Nh5 {[%clk 0:00:21.9]} 62...
Kg2 {[%clk 0:00:23.7]} 63. Nf6 {[%clk 0:00:22.4]} 63... g3 {[%clk 0:00:20.2]}
64. fxg3 {[%clk 0:00:22.5]} 64... Kxg3 {[%clk 0:00:22.1]} 65. Nd5 {[%clk
0:00:23.2]} 65... Rxd4+ {[%clk 0:00:22.2]} 66. Kxd4 {[%clk 0:00:23.8]} 1/2-1/2

[Event "*** Titled Tuesday Blitz AM"]
[Site "Chess.com"]
[Date "2020.01.07"]
[Round "4"]
[White "AleksibFan"]
[Black "NemtsevIgor"]
[Result "0-1"]
[WhiteElo "2578"]
[BlackElo "2375"]
[TimeControl "180+2"]
[EndTime "9:54:10 PST"]
[Termination "NemtsevIgor won on time"]

1. d4 {[%clk 0:03:01.9]} 1... Nf6 {[%clk 0:02:59.7]} 2. Bg5 {[%clk 0:03:02.3]}
2... g6 {[%clk 0:03:00.1]} 3. Bxf6 {[%clk 0:03:03.1]} 3... exf6 {[%clk
0:03:01.4]} 4. e3 {[%clk 0:03:05]} 4... Bg7 {[%clk 0:03:02.3]} 5. g3 {[%clk
0:03:06.5]} 5... f5 {[%clk 0:03:03.3]} 6. Bg2 {[%clk 0:03:08.1]} 6... O-O {[%clk
0:03:03.5]} 7. Ne2 {[%clk 0:03:09.2]} 7... d6 {[%clk 0:03:03.6]} 8. O-O {[%clk
0:03:10.4]} 8... Nd7 {[%clk 0:03:00.3]} 9. c4 {[%clk 0:03:11.1]} 9... Nf6 {[%clk
0:02:58.8]} 10. Nbc3 {[%clk 0:03:09]} 10... c6 {[%clk 0:02:59.2]} 11. b4 {[%clk
0:03:09.3]} 11... Re8 {[%clk 0:02:59.8]} 12. Qd3 {[%clk 0:03:08.8]} 12... Qe7
{[%clk 0:02:57.4]} 13. Rab1 {[%clk 0:03:08.5]} 13... Ne4 {[%clk 0:02:57.9]} 14.
b5 {[%clk 0:03:08.1]} 14... h5 {[%clk 0:02:50.3]} 15. Rfe1 {[%clk 0:02:36]}
15... h4 {[%clk 0:02:47.6]} 16. f3 {[%clk 0:02:36.5]} 16... Nxc3 {[%clk
0:02:43.8]} 17. Nxc3 {[%clk 0:02:38.4]} 17... hxg3 {[%clk 0:02:44.7]} 18. hxg3
{[%clk 0:02:38.7]} 18... Qg5 {[%clk 0:02:34.6]} 19. Kf2 {[%clk 0:02:38]} 19...
Bd7 {[%clk 0:02:20.5]} 20. bxc6 {[%clk 0:02:34]} 20... bxc6 {[%clk 0:02:09.4]}
21. f4 {[%clk 0:02:22.5]} 21... Qe7 {[%clk 0:02:05.3]} 22. Rb7 {[%clk
0:02:21.4]} 22... Reb8 {[%clk 0:01:58.2]} 23. Bxc6 {[%clk 0:02:09.5]} 23... Rxb7
{[%clk 0:01:59.3]} 24. Bxb7 {[%clk 0:02:10.5]} 24... Rb8 {[%clk 0:02:00.1]} 25.
Bf3 {[%clk 0:02:09.5]} 25... Be6 {[%clk 0:01:47.7]} 26. Rb1 {[%clk 0:02:06.5]}
26... Qc7 {[%clk 0:01:35]} 27. Nd5 {[%clk 0:01:13.2]} 27... Bxd5 {[%clk
0:01:09.1]} 28. Bxd5 {[%clk 0:01:15.1]} 28... Bf6 {[%clk 0:00:56.8]} 29. g4
{[%clk 0:01:12.5]} 29... Rxb1 {[%clk 0:00:51.8]} 30. Qxb1 {[%clk 0:01:12.2]}
30... Qb6 {[%clk 0:00:49]} 31. Qxb6 {[%clk 0:00:27.7]} 31... axb6 {[%clk
0:00:49.8]} 32. g5 {[%clk 0:00:16.9]} 32... Be7 {[%clk 0:00:42.3]} 33. Ke2
{[%clk 0:00:13.6]} 33... Kf8 {[%clk 0:00:43.5]} 34. Kd3 {[%clk 0:00:14.1]} 34...
f6 {[%clk 0:00:45]} 35. gxf6 {[%clk 0:00:12.4]} 35... Bxf6 {[%clk 0:00:46.3]}
36. Bc6 {[%clk 0:00:10.6]} 36... Ke7 {[%clk 0:00:43.8]} 37. a4 {[%clk
0:00:08.2]} 37... g5 {[%clk 0:00:42]} 38. fxg5 {[%clk 0:00:08.6]} 38... Bxg5
{[%clk 0:00:43.3]} 39. Bb7 {[%clk 0:00:09.6]} 39... Bh4 {[%clk 0:00:36.6]} 40.
Bc8 {[%clk 0:00:09.3]} 40... Kf6 {[%clk 0:00:37.9]} 41. Ke2 {[%clk 0:00:10]}
41... Bg5 {[%clk 0:00:35.7]} 42. Kf3 {[%clk 0:00:10.6]} 42... Bh6 {[%clk
0:00:36.1]} 43. Bd7 {[%clk 0:00:09.3]} 43... Bf8 {[%clk 0:00:35.1]} 44. Bc8
{[%clk 0:00:08.1]} 44... Bh6 {[%clk 0:00:35.6]} 45. c5 {[%clk 0:00:07.8]} 45...
dxc5 {[%clk 0:00:34.3]} 46. dxc5 {[%clk 0:00:09]} 46... bxc5 {[%clk 0:00:29.7]}
47. a5 {[%clk 0:00:09.7]} 47... c4 {[%clk 0:00:12.3]} 48. a6 {[%clk 0:00:08.5]}
48... c3 {[%clk 0:00:13.7]} 49. a7 {[%clk 0:00:05.7]} 49... c2 {[%clk
0:00:15.2]} 50. a8=Q {[%clk 0:00:06.5]} 50... c1=Q {[%clk 0:00:16.7]} 51. Qa6+
{[%clk 0:00:06.1]} 51... Kg7 {[%clk 0:00:16.6]} 52. Bxf5 {[%clk 0:00:06]} 52...
Qxe3+ {[%clk 0:00:17]} 53. Kg2 {[%clk 0:00:06.1]} 53... Qg5+ {[%clk 0:00:17.7]}
54. Kf1 {[%clk 0:00:06.1]} 54... Qxf5+ {[%clk 0:00:18.9]} 55. Kg2 {[%clk
0:00:08]} 55... Bf4 {[%clk 0:00:20]} 56. Kg1 {[%clk 0:00:07.3]} 56... Qg4+
{[%clk 0:00:20.8]} 57. Kf1 {[%clk 0:00:08.3]} 57... Qf3+ {[%clk 0:00:21.8]} 0-1

[Event "*** Titled Tuesday Blitz AM"]
[Site "Chess.com"]
[Date "2020.01.07"]
[Round "4"]
[White "nihalsarin"]
[Black "Gabrielian_Artur"]
[Result "1-0"]
[WhiteElo "3067"]
[BlackElo "2815"]
[TimeControl "180+2"]
[EndTime "9:54:11 PST"]
[Termination "nihalsarin won by resignation"]

1. c4 {[%clk 0:03:01.9]} 1... Nf6 {[%clk 0:02:59.5]} 2. Nf3 {[%clk 0:03:01.3]}
2... g6 {[%clk 0:02:59.4]} 3. Nc3 {[%clk 0:03:01.6]} 3... Bg7 {[%clk 0:02:59.3]}
4. g3 {[%clk 0:02:56.9]} 4... O-O {[%clk 0:02:59.4]} 5. Bg2 {[%clk 0:02:58.4]}
5... d6 {[%clk 0:02:59.6]} 6. O-O {[%clk 0:02:59.3]} 6... e5 {[%clk 0:02:58.8]}
7. d3 {[%clk 0:03:00.9]} 7... Nc6 {[%clk 0:02:58.9]} 8. Rb1 {[%clk 0:03:01.4]}
8... a5 {[%clk 0:02:59.4]} 9. a3 {[%clk 0:03:02.8]} 9... Re8 {[%clk 0:02:58.2]}
10. Bg5 {[%clk 0:02:53.4]} 10... h6 {[%clk 0:02:57.3]} 11. Bxf6 {[%clk
0:02:53.9]} 11... Bxf6 {[%clk 0:02:59.2]} 12. b4 {[%clk 0:02:53.2]} 12... axb4
{[%clk 0:03:00.2]} 13. axb4 {[%clk 0:02:55.1]} 13... Bg7 {[%clk 0:03:00.6]} 14.
b5 {[%clk 0:02:51.8]} 14... Nd4 {[%clk 0:03:01.6]} 15. e3 {[%clk 0:02:35]} 15...
Ne6 {[%clk 0:02:57.4]} 16. Nd2 {[%clk 0:02:34.8]} 16... Nc5 {[%clk 0:02:54.4]}
17. Nde4 {[%clk 0:02:12.4]} 17... Nxe4 {[%clk 0:02:53]} 18. Bxe4 {[%clk
0:02:13.3]} 18... h5 {[%clk 0:02:48.9]} 19. h4 {[%clk 0:02:05.4]} 19... Bg4
{[%clk 0:02:34.9]} 20. Bf3 {[%clk 0:01:40.6]} 20... Qd7 {[%clk 0:02:11.1]} 21.
Nd5 {[%clk 0:01:23.3]} 21... Ra3 {[%clk 0:02:05]} 22. Bxg4 {[%clk 0:01:21.5]}
22... hxg4 {[%clk 0:02:05]} 23. Rb3 {[%clk 0:00:53.9]} 23... Ra2 {[%clk
0:02:02.1]} 24. Nc3 {[%clk 0:00:46]} 24... Raa8 {[%clk 0:02:01]} 25. Nd5 {[%clk
0:00:44.6]} 25... Ra2 {[%clk 0:02:00.4]} 26. Nc3 {[%clk 0:00:46]} 26... Raa8
{[%clk 0:02:00.5]} 27. Qe2 {[%clk 0:00:45.8]} 27... Ra5 {[%clk 0:01:53]} 28.
Rbb1 {[%clk 0:00:43.9]} 28... Rea8 {[%clk 0:01:53.1]} 29. Rfc1 {[%clk
0:00:44.8]} 29... Kh7 {[%clk 0:01:52.3]} 30. Kg2 {[%clk 0:00:45.2]} 30... Qf5
{[%clk 0:01:44.1]} 31. e4 {[%clk 0:00:33.8]} 31... Qd7 {[%clk 0:01:43.6]} 32.
Rh1 {[%clk 0:00:29.6]} 32... Ra3 {[%clk 0:01:34.8]} 33. Nd5 {[%clk 0:00:26.3]}
33... Ra2 {[%clk 0:01:35.7]} 34. Rb2 {[%clk 0:00:27.1]} 34... Rxb2 {[%clk
0:01:34.8]} 35. Qxb2 {[%clk 0:00:29]} 35... Kg8 {[%clk 0:01:25.5]} 36. h5 {[%clk
0:00:29.5]} 36... Rf8 {[%clk 0:01:04.4]} 37. h6 {[%clk 0:00:18.9]} 37... Bh8
{[%clk 0:01:05]} 38. h7+ {[%clk 0:00:20.4]} 38... Kg7 {[%clk 0:01:06.5]} 39. Qd2
{[%clk 0:00:22.1]} 39... f6 {[%clk 0:01:07.9]} 40. Qh6+ {[%clk 0:00:20.5]} 40...
Kf7 {[%clk 0:01:09.2]} 41. Ra1 {[%clk 0:00:22.1]} 41... Bg7 {[%clk 0:01:02.6]}
42. Qe3 {[%clk 0:00:23.5]} 42... Rh8 {[%clk 0:00:56.7]} 43. Ra7 {[%clk
0:00:24.5]} 43... Qc8 {[%clk 0:00:34.4]} 44. c5 {[%clk 0:00:25.8]} 44... dxc5
{[%clk 0:00:33.5]} 45. Qxc5 {[%clk 0:00:25.5]} 45... Rxh7 {[%clk 0:00:34.9]} 46.
Qe7+ {[%clk 0:00:18.4]} 46... Kg8 {[%clk 0:00:35.5]} 47. Nxf6+ {[%clk
0:00:15.7]} 47... Bxf6 {[%clk 0:00:36]} 48. Qxf6 {[%clk 0:00:17.6]} 48... Qf8
{[%clk 0:00:24.9]} 49. Qxf8+ {[%clk 0:00:14.8]} 49... Kxf8 {[%clk 0:00:25.8]}
50. Rxb7 {[%clk 0:00:16.7]} 50... Re7 {[%clk 0:00:22.6]} 51. Kf1 {[%clk
0:00:17]} 51... Ke8 {[%clk 0:00:21.4]} 52. Ke2 {[%clk 0:00:18.5]} 52... Kd8
{[%clk 0:00:22.6]} 53. Ke3 {[%clk 0:00:19.4]} 53... Rf7 {[%clk 0:00:23.5]} 54.
b6 {[%clk 0:00:18.5]} 54... Rf3+ {[%clk 0:00:24]} 55. Ke2 {[%clk 0:00:20.1]}
55... cxb6 {[%clk 0:00:23.5]} 56. Rxb6 {[%clk 0:00:22]} 1-0

[Event "*** Titled Tuesday Blitz AM"]
[Site "Chess.com"]
[Date "2020.01.07"]
[Round "4"]
[White "enriquetejedor"]
[Black "lucasran"]
[Result "0-1"]
[WhiteElo "2484"]
[BlackElo "2702"]
[TimeControl "180+2"]
[EndTime "9:54:13 PST"]
[Termination "lucasran won by checkmate"]

1. e4 {[%clk 0:03:01.9]} 1... c6 {[%clk 0:03:00.8]} 2. Nc3 {[%clk 0:03:02]} 2...
d5 {[%clk 0:03:02.7]} 3. Nf3 {[%clk 0:03:03]} 3... Bg4 {[%clk 0:03:03.4]} 4. h3
{[%clk 0:03:01.2]} 4... Bxf3 {[%clk 0:03:04.7]} 5. Qxf3 {[%clk 0:03:03.1]} 5...
Nf6 {[%clk 0:03:06.1]} 6. d4 {[%clk 0:02:55]} 6... dxe4 {[%clk 0:03:06.8]} 7.
Qe3 {[%clk 0:02:54.2]} 7... e6 {[%clk 0:03:07.9]} 8. Nxe4 {[%clk 0:02:50.8]}
8... Nbd7 {[%clk 0:03:08.1]} 9. Be2 {[%clk 0:02:34.9]} 9... Nxe4 {[%clk
0:03:08.3]} 10. Qxe4 {[%clk 0:02:35.8]} 10... Nf6 {[%clk 0:03:10.2]} 11. Qd3
{[%clk 0:02:37]} 11... Bd6 {[%clk 0:02:50]} 12. O-O {[%clk 0:02:37.3]} 12... Qc7
{[%clk 0:02:49.2]} 13. c4 {[%clk 0:02:28.9]} 13... Bf4 {[%clk 0:02:46.7]} 14.
Be3 {[%clk 0:02:02.2]} 14... O-O {[%clk 0:02:35.9]} 15. Rfd1 {[%clk 0:02:02]}
15... Rfd8 {[%clk 0:02:36]} 16. Bxf4 {[%clk 0:01:51.5]} 16... Qxf4 {[%clk
0:02:36]} 17. Qe3 {[%clk 0:01:53.4]} 17... Qc7 {[%clk 0:02:31.2]} 18. a3 {[%clk
0:01:53.6]} 18... Rd7 {[%clk 0:02:25.5]} 19. Rd2 {[%clk 0:01:54.2]} 19... Rad8
{[%clk 0:02:24.1]} 20. Rad1 {[%clk 0:01:55.7]} 20... Qb6 {[%clk 0:01:40.5]} 21.
Bf3 {[%clk 0:01:53]} 21... a5 {[%clk 0:01:31.9]} 22. Qc3 {[%clk 0:01:51.9]}
22... Qc7 {[%clk 0:01:21.5]} 23. g3 {[%clk 0:01:49.9]} 23... Ne8 {[%clk
0:01:18.8]} 24. Be4 {[%clk 0:01:45.8]} 24... Nd6 {[%clk 0:01:16.1]} 25. Bc2
{[%clk 0:01:43.3]} 25... g6 {[%clk 0:01:14.2]} 26. h4 {[%clk 0:01:42.4]} 26...
h5 {[%clk 0:01:14.2]} 27. b3 {[%clk 0:01:33]} 27... b5 {[%clk 0:01:03.6]} 28. c5
{[%clk 0:01:25.9]} 28... Ne8 {[%clk 0:01:04]} 29. Qf3 {[%clk 0:00:59.4]} 29...
Kg7 {[%clk 0:00:58.5]} 30. Be4 {[%clk 0:01:00.4]} 30... Rc8 {[%clk 0:00:59.3]}
31. Re1 {[%clk 0:00:53.8]} 31... Nf6 {[%clk 0:01:00.1]} 32. Bxg6 {[%clk
0:00:50.7]} 32... Kxg6 {[%clk 0:00:50.4]} 33. Re5 {[%clk 0:00:50.6]} 33... Rd5
{[%clk 0:00:46.3]} 34. Rde2 {[%clk 0:00:43.1]} 34... Rcd8 {[%clk 0:00:43.6]} 35.
Qd3+ {[%clk 0:00:42]} 35... Kg7 {[%clk 0:00:43.2]} 36. Qe3 {[%clk 0:00:41.9]}
36... Rxe5 {[%clk 0:00:26.3]} 37. dxe5 {[%clk 0:00:43.8]} 37... Nh7 {[%clk
0:00:26.7]} 38. Qf3 {[%clk 0:00:43.9]} 38... Qd7 {[%clk 0:00:22.8]} 39. Qxh5
{[%clk 0:00:42.5]} 39... Qd1+ {[%clk 0:00:23.2]} 40. Kg2 {[%clk 0:00:41.8]}
40... Rd2 {[%clk 0:00:22.8]} 41. Qg4+ {[%clk 0:00:28]} 41... Kf8 {[%clk
0:00:23.6]} 42. Re4 {[%clk 0:00:23.1]} 42... Qxg4 {[%clk 0:00:20.1]} 43. Rxg4
{[%clk 0:00:25]} 43... Rd5 {[%clk 0:00:20.7]} 44. b4 {[%clk 0:00:22.3]} 44...
axb4 {[%clk 0:00:21.2]} 45. axb4 {[%clk 0:00:24.2]} 45... Rxe5 {[%clk
0:00:22.6]} 46. Rf4 {[%clk 0:00:25.4]} 46... Kg7 {[%clk 0:00:22.4]} 47. Rf3
{[%clk 0:00:22.6]} 47... Nf6 {[%clk 0:00:22.8]} 48. Ra3 {[%clk 0:00:22.6]} 48...
Re4 {[%clk 0:00:23.3]} 49. Ra6 {[%clk 0:00:22.6]} 49... Rxb4 {[%clk 0:00:24.2]}
50. Rxc6 {[%clk 0:00:24.3]} 50... Rc4 {[%clk 0:00:25.8]} 51. Rc8 {[%clk
0:00:23.6]} 51... Nd5 {[%clk 0:00:22.1]} 52. f3 {[%clk 0:00:21.3]} 52... b4
{[%clk 0:00:22.9]} 53. g4 {[%clk 0:00:18.2]} 53... b3 {[%clk 0:00:22.6]} 54. c6
{[%clk 0:00:12.2]} 54... b2 {[%clk 0:00:18.3]} 55. Rb8 {[%clk 0:00:12.7]} 55...
Nb4 {[%clk 0:00:14.4]} 56. c7 {[%clk 0:00:11.9]} 56... b1=Q {[%clk 0:00:15.4]}
57. c8=Q {[%clk 0:00:13.3]} 57... Rxc8 {[%clk 0:00:16.2]} 58. Rxc8 {[%clk
0:00:15.2]} 58... Qb2+ {[%clk 0:00:17]} 59. Kg3 {[%clk 0:00:14.4]} 59... Nd3
{[%clk 0:00:18]} 60. h5 {[%clk 0:00:08]} 60... Qf2+ {[%clk 0:00:18.3]} 61. Kh3
{[%clk 0:00:09.5]} 61... Nf4# {[%clk 0:00:19.3]} 0-1

[Event "*** Titled Tuesday Blitz AM"]
[Site "Chess.com"]
[Date "2020.01.07"]
[Round "4"]
[White "GMBenjaminBok"]
[Black "Anna_ChessMate"]
[Result "1-0"]
[WhiteElo "2869"]
[BlackElo "2586"]
[TimeControl "180+2"]
[EndTime "9:54:23 PST"]
[Termination "GMBenjaminBok won by resignation"]

1. Nf3 {[%clk 0:03:01.9]} 1... d5 {[%clk 0:02:59.3]} 2. g3 {[%clk 0:03:02.6]}
2... c6 {[%clk 0:03:00.7]} 3. Bg2 {[%clk 0:03:03.8]} 3... Bf5 {[%clk 0:03:02.3]}
4. c4 {[%clk 0:03:04.6]} 4... e6 {[%clk 0:03:03.2]} 5. Qb3 {[%clk 0:03:03.5]}
5... Qc8 {[%clk 0:03:01.3]} 6. O-O {[%clk 0:03:03.5]} 6... Nd7 {[%clk
0:03:01.1]} 7. d3 {[%clk 0:03:04.4]} 7... Ngf6 {[%clk 0:03:02.4]} 8. Nc3 {[%clk
0:03:05.2]} 8... Be7 {[%clk 0:02:59.2]} 9. cxd5 {[%clk 0:03:02.7]} 9... exd5
{[%clk 0:02:58.4]} 10. Be3 {[%clk 0:02:51.8]} 10... O-O {[%clk 0:02:56.7]} 11.
Rac1 {[%clk 0:02:52.2]} 11... Re8 {[%clk 0:02:47.3]} 12. Nd4 {[%clk 0:02:38.9]}
12... Bg6 {[%clk 0:02:43.6]} 13. Nxd5 {[%clk 0:02:01.5]} 13... Nxd5 {[%clk
0:02:33]} 14. Bxd5 {[%clk 0:02:01.9]} 14... Nc5 {[%clk 0:02:08.2]} 15. Qd1
{[%clk 0:01:05.7]} 15... cxd5 {[%clk 0:02:02.6]} 16. b4 {[%clk 0:01:06.4]} 16...
b6 {[%clk 0:01:55.5]} 17. Nb3 {[%clk 0:01:05.2]} 17... Qh3 {[%clk 0:01:20.8]}
18. bxc5 {[%clk 0:01:04.3]} 18... bxc5 {[%clk 0:01:18.8]} 19. Bxc5 {[%clk
0:00:56]} 19... Bg5 {[%clk 0:01:08.9]} 20. f4 {[%clk 0:00:51.9]} 20... Bf6
{[%clk 0:01:05.9]} 21. Bd4 {[%clk 0:00:49.4]} 21... Bh5 {[%clk 0:01:06]} 22. Rf2
{[%clk 0:00:47.9]} 22... Qe6 {[%clk 0:00:54]} 23. Bxf6 {[%clk 0:00:37.6]} 23...
Qxf6 {[%clk 0:00:48.1]} 24. Qd2 {[%clk 0:00:36.9]} 24... Qb6 {[%clk 0:00:38.9]}
25. Kg2 {[%clk 0:00:31.2]} 25... a5 {[%clk 0:00:37.4]} 26. h3 {[%clk 0:00:21.4]}
26... a4 {[%clk 0:00:33.5]} 27. Nc5 {[%clk 0:00:21.5]} 27... f6 {[%clk
0:00:32.5]} 28. g4 {[%clk 0:00:14.5]} 28... Bf7 {[%clk 0:00:31.9]} 29. d4 {[%clk
0:00:14.5]} 29... Re7 {[%clk 0:00:30.4]} 30. e3 {[%clk 0:00:15.3]} 30... h5
{[%clk 0:00:30.3]} 31. Rc3 {[%clk 0:00:13.2]} 31... a3 {[%clk 0:00:28.4]} 32.
Rb3 {[%clk 0:00:13.3]} 32... Qd6 {[%clk 0:00:29.2]} 33. Qd1 {[%clk 0:00:09.8]}
33... Rae8 {[%clk 0:00:28.2]} 34. Qc1 {[%clk 0:00:10.2]} 34... Be6 {[%clk
0:00:24.2]} 35. f5 {[%clk 0:00:09.4]} 35... Bf7 {[%clk 0:00:25.2]} 36. Rxa3
{[%clk 0:00:10.2]} 36... h4 {[%clk 0:00:26.1]} 37. Rf4 {[%clk 0:00:10.8]} 37...
g5 {[%clk 0:00:23.1]} 38. Rf3 {[%clk 0:00:11.4]} 38... Kg7 {[%clk 0:00:22.7]}
39. Ra6 {[%clk 0:00:12.3]} 39... Qb8 {[%clk 0:00:22.8]} 40. a4 {[%clk
0:00:12.1]} 40... Qb4 {[%clk 0:00:21.1]} 41. a5 {[%clk 0:00:08]} 41... Rb8
{[%clk 0:00:21.2]} 42. Ne6+ {[%clk 0:00:06.3]} 42... Kg8 {[%clk 0:00:22]} 43.
Rb6 {[%clk 0:00:06.7]} 43... Rxb6 {[%clk 0:00:22.5]} 44. axb6 {[%clk 0:00:07.4]}
44... Qxb6 {[%clk 0:00:24.1]} 45. Qc5 {[%clk 0:00:08]} 45... Rb7 {[%clk
0:00:20.5]} 46. Qxb6 {[%clk 0:00:08.2]} 46... Rxb6 {[%clk 0:00:22.4]} 47. Nc5
{[%clk 0:00:09.5]} 47... Be8 {[%clk 0:00:21.2]} 48. Rf2 {[%clk 0:00:10.4]} 48...
Kf7 {[%clk 0:00:22.7]} 49. Ra2 {[%clk 0:00:11]} 49... Ke7 {[%clk 0:00:22.4]} 50.
Ra7+ {[%clk 0:00:10.3]} 50... Kd6 {[%clk 0:00:23.8]} 51. Ra6 {[%clk 0:00:11.1]}
51... Rxa6 {[%clk 0:00:23.4]} 52. Nxa6 {[%clk 0:00:13]} 52... Kc6 {[%clk
0:00:23.7]} 53. Nc5 {[%clk 0:00:14.2]} 53... Kd6 {[%clk 0:00:25]} 54. Kf2 {[%clk
0:00:15.2]} 54... Bb5 {[%clk 0:00:26.4]} 55. e4 {[%clk 0:00:13]} 55... Bc6
{[%clk 0:00:24.9]} 56. Ke3 {[%clk 0:00:10.5]} 56... Bb5 {[%clk 0:00:26.4]} 57.
exd5 {[%clk 0:00:09.3]} 57... Kxd5 {[%clk 0:00:28.3]} 58. Ne4 {[%clk 0:00:10.5]}
58... Bf1 {[%clk 0:00:27.8]} 59. Nxf6+ {[%clk 0:00:11.9]} 59... Kd6 {[%clk
0:00:29.2]} 60. Ne4+ {[%clk 0:00:12.9]} 60... Kd5 {[%clk 0:00:30.3]} 61. Nxg5
{[%clk 0:00:14.5]} 61... Kd6 {[%clk 0:00:29.6]} 62. Kf2 {[%clk 0:00:14.5]} 62...
Bd3 {[%clk 0:00:29.6]} 63. Nf3 {[%clk 0:00:15.7]} 63... Kd5 {[%clk 0:00:29.9]}
64. Nxh4 {[%clk 0:00:16.4]} 64... Kxd4 {[%clk 0:00:31.3]} 65. Nf3+ {[%clk
0:00:17.2]} 65... Ke4 {[%clk 0:00:31.7]} 66. Kg3 {[%clk 0:00:18.7]} 66... Be2
{[%clk 0:00:31.9]} 67. Ng5+ {[%clk 0:00:18.8]} 67... Ke5 {[%clk 0:00:33.3]} 68.
h4 {[%clk 0:00:20.3]} 68... Kf6 {[%clk 0:00:34.5]} 69. Kf4 {[%clk 0:00:21.5]}
1-0